[Event "14e Open International de Quenza"]
[Site "Quenza, France"]
[Date "????.??.??"]
[Round "6.3"]
[White "Maurizzi, Marc Andria"]
[Black "Sumets, Andrey"]
[Result "1/2-1/2"]
[TimeControl "5min+3s"]
[WhiteElo "2604"]
[BlackElo "2497"]

1. e4 {[%clk 00:05:03]} {[%emt 00:00:02]} e6 {[%clk 00:05:02]} {[%emt
00:00:05]} 2. b3 {[%clk 00:05:03]} {[%emt 00:00:04]} d5 {[%emt 00:00:04]} 3.
Bb2 Nc6 {[%clk 00:05:01]} {[%emt 00:00:02]} 4. e5 {[%clk 00:05:03]} {[%emt
00:00:01]} f6 {[%clk 00:04:44]} {[%emt 00:00:20]} 5. Bb5 {[%clk 00:04:41]}
{[%emt 00:00:24]} Bd7 {[%clk 00:04:37]} {[%emt 00:00:10]} 6. Bxc6 {[%clk
00:04:41]} {[%emt 00:00:02]} Bxc6 {[%clk 00:04:37]} {[%emt 00:00:02]} 7. Nf3
{[%clk 00:04:41]} f5 {[%clk 00:04:04]} {[%emt 00:00:37]} 8. d4 {[%clk
00:04:24]} {[%emt 00:00:20]} Nh6 {[%clk 00:03:54]} {[%emt 00:00:12]} 9. a4
{[%clk 00:04:09]} {[%emt 00:00:20]} a5 {[%clk 00:03:36]} {[%emt 00:00:21]} 10.
Ba3 {[%clk 00:04:09]} {[%emt 00:00:02]} Bxa3 {[%clk 00:03:32]} {[%emt
00:00:06]} 11. Nxa3 {[%clk 00:04:09]} {[%emt 00:00:01]} O-O {[%clk 00:03:32]}
{[%emt 00:00:02]} 12. Qd2 {[%clk 00:04:06]} {[%emt 00:00:06]} b6 {[%clk
00:03:31]} {[%emt 00:00:04]} 13. Qf4 {[%clk 00:04:01]} {[%emt 00:00:08]} Qe7
{[%clk 00:03:28]} {[%emt 00:00:06]} 14. O-O {[%clk 00:03:48]} {[%emt 00:00:16]}
Nf7 {[%clk 00:03:09]} {[%emt 00:00:23]} 15. h4 {[%clk 00:03:48]} h6 {[%clk
00:03:09]} {[%emt 00:00:03]} 16. g3 {[%clk 00:03:14]} {[%emt 00:00:37]} g5
{[%clk 00:02:56]} {[%emt 00:00:16]} 17. Qd2 {[%clk 00:03:14]} {[%emt 00:00:01]}
f4 {[%clk 00:02:35]} {[%emt 00:00:23]} 18. Kg2 {[%clk 00:03:01]} {[%emt
00:00:15]} Kg7 {[%clk 00:02:27]} {[%emt 00:00:11]} 19. gxf4 {[%emt 00:01:06]}
g4 {[%clk 00:02:08]} {[%emt 00:00:02]} 20. Ne1 {[%emt 00:00:04]} Qxh4 {[%clk
00:02:06]} {[%emt 00:00:02]} 21. Rh1 {[%clk 00:02:18]} {[%emt 00:00:01]} Qe7
{[%clk 00:02:06]} {[%emt 00:00:02]} 22. Nd3 {[%clk 00:02:14]} {[%emt 00:00:07]}
Rh8 {[%clk 00:01:36]} {[%emt 00:00:33]} 23. Rh5 {[%clk 00:01:57]} {[%emt
00:00:20]} Be8 {[%clk 00:01:16]} {[%emt 00:00:23]} 24. Rah1 {[%clk 00:01:46]}
{[%emt 00:00:13]} Qxa3 {[%clk 00:01:13]} {[%emt 00:00:06]} 25. f5 {[%clk
00:01:46]} {[%emt 00:00:03]} exf5 {[%clk 00:01:07]} {[%emt 00:00:09]} 26. e6
{[%clk 00:01:45]} {[%emt 00:00:04]} Qe7 {[%clk 00:01:00]} {[%emt 00:00:11]} 27.
exf7 {[%clk 00:01:45]} {[%emt 00:00:03]} Bxf7 {[%clk 00:01:00]} {[%emt
00:00:02]} 28. Rxh6 {[%clk 00:01:45]} {[%emt 00:00:03]} Qe4+ {[%clk 00:01:00]}
29. Kg1 {[%clk 00:01:45]} {[%emt 00:00:02]} f4 {[%clk 00:00:40]} {[%emt
00:00:23]} 30. Rxh8 {[%clk 00:01:45]} {[%emt 00:00:01]} Rxh8 {[%clk 00:00:40]}
31. Rxh8 {[%clk 00:01:45]} {[%emt 00:00:01]} Kxh8 {[%clk 00:00:40]} {[%emt
00:00:01]} 32. Nxf4 {[%clk 00:01:45]} {[%emt 00:00:03]} Kg7 {[%clk 00:00:38]}
{[%emt 00:00:05]} 33. Ne2 {[%clk 00:01:17]} {[%emt 00:00:32]} Bg6 {[%clk
00:00:34]} {[%emt 00:00:06]} 34. Ng3 {[%clk 00:01:17]} Qxc2 {[%emt 00:00:08]}
35. Qg5 Qd1+ {[%clk 00:00:30]} {[%emt 00:00:01]} 36. Kh2 {[%clk 00:01:17]} Qf3
{[%clk 00:00:30]} {[%emt 00:00:04]} 37. Kg1 {[%clk 00:01:09]} {[%emt 00:00:11]}
Qd1+ {[%clk 00:00:30]} {[%emt 00:00:01]} 38. Kh2 {[%clk 00:01:09]} Qf3 {[%clk
00:00:30]} {[%emt 00:00:01]} 39. Qe5+ {[%clk 00:01:08]} {[%emt 00:00:06]} Kg8
{[%clk 00:00:24]} {[%emt 00:00:09]} 40. Kg1 {[%clk 00:01:01]} {[%emt 00:00:11]}
Qd1+ {[%clk 00:00:24]} {[%emt 00:00:02]} 41. Kh2 {[%clk 00:01:01]} Qf3 {[%clk
00:00:24]} {[%emt 00:00:01]} 42. Qe6+ {[%clk 00:00:55]} {[%emt 00:00:08]} Kg7
{[%clk 00:00:20]} {[%emt 00:00:06]} 43. Qe7+ {[%clk 00:00:55]} {[%emt
00:00:02]} Kh6 {[%clk 00:00:17]} {[%emt 00:00:07]} 44. Qh4+ {[%clk 00:00:55]}
{[%emt 00:00:02]} Kg7 {[%clk 00:00:17]} 45. Qe7+ {[%clk 00:00:55]} {[%emt
00:00:03]} Kh6 {[%clk 00:00:17]} 46. Qe1 {[%clk 00:00:17]} {[%emt 00:00:41]}
Be4 {[%clk 00:00:17]} {[%emt 00:00:02]} 47. Qc1+ {[%clk 00:00:17]} Kg6 {[%clk
00:00:17]} {[%emt 00:00:01]} 48. Qc6+ {[%clk 00:00:17]} {[%emt 00:00:01]} Kg5
{[%clk 00:00:15]} {[%emt 00:00:05]} 49. Qc1+ {[%clk 00:00:16]} {[%emt
00:00:04]} Qf4 {[%clk 00:00:13]} {[%emt 00:00:04]} 50. Qe1 {[%clk 00:00:16]}
{[%emt 00:00:01]} Kh4 {[%clk 00:00:12]} {[%emt 00:00:04]} 51. Kg1 {[%clk
00:00:10]} {[%emt 00:00:10]} Qf3 {[%clk 00:00:11]} {[%emt 00:00:05]} 52. Nxe4
{[%clk 00:00:10]} Qxe4 {[%clk 00:00:11]} 53. Qc1 {[%clk 00:00:10]} Kh5 {[%clk
00:00:09]} {[%emt 00:00:05]} 54. Qxc7 {[%clk 00:00:10]} {[%emt 00:00:03]} Qe1+
{[%clk 00:00:09]} 55. Kg2 {[%clk 00:00:10]} Qe4+ {[%clk 00:00:09]} {[%emt
00:00:02]} 56. Kg1 {[%clk 00:00:10]} {[%emt 00:00:01]} Qe1+ {[%clk 00:00:09]}
57. Kg2 {[%clk 00:00:09]} {[%emt 00:00:04]} Qe4+ {[%clk 00:00:09]} {[%emt
00:00:01]} 58. Kg1 {[%clk 00:00:09]} Qxd4 {[%clk 00:00:09]} {[%emt 00:00:01]}
59. Qf7+ {[%clk 00:00:08]} {[%emt 00:00:03]} Kg5 {[%clk 00:00:09]} {[%emt
00:00:03]} 60. Qe6 {[%clk 00:00:08]} {[%emt 00:00:02]} Qd1+ {[%clk 00:00:09]}
{[%emt 00:00:03]} 61. Kh2 {[%clk 00:00:08]} Qxb3 {[%clk 00:00:09]} {[%emt
00:00:03]} 62. Qe5+ {[%clk 00:00:08]} Kg6 {[%clk 00:00:09]} {[%emt 00:00:01]}
63. Qe6+ {[%clk 00:00:08]} Kg7 {[%clk 00:00:09]} {[%emt 00:00:01]} 64. Qe7+
{[%clk 00:00:08]} Kg6 {[%clk 00:00:09]} 65. Qe6+ {[%clk 00:00:08]} Kg7 {[%clk
00:00:09]} 66. Qe7+ {[%clk 00:00:08]} Kg6 {[%clk 00:00:09]} 67. Qe6+ {[%clk
00:00:08]} Kg7 {[%clk 00:00:09]} {[%emt 00:00:01]} 68. Qe7+ {[%clk 00:00:08]}
1/2-1/2

[Event "14e Open International de Quenza"]
[Site "Quenza, France"]
[Date "????.??.??"]
[Round "6.4"]
[White "Deladerriere, Apollo"]
[Black "Terrieux, Kevin"]
[Result "0-1"]
[TimeControl "5min+3s"]
[WhiteElo "2131"]
[BlackElo "2394"]

1. e4 {[%clk 00:05:03]} c5 {[%clk 00:05:03]} 2. Nf3 {[%clk 00:05:03]} {[%emt
00:00:03]} d6 {[%clk 00:05:03]} {[%emt 00:00:01]} 3. d4 {[%clk 00:05:03]}
{[%emt 00:00:01]} cxd4 {[%clk 00:05:03]} {[%emt 00:00:02]} 4. Qxd4 {[%clk
00:05:03]} {[%emt 00:00:01]} Nf6 {[%clk 00:04:49]} {[%emt 00:00:17]} 5. c4
{[%clk 00:05:03]} {[%emt 00:00:01]} Nc6 {[%clk 00:04:34]} {[%emt 00:00:19]} 6.
Qe3 {[%clk 00:05:03]} {[%emt 00:00:02]} Bg4 {[%clk 00:04:31]} {[%emt 00:00:06]}
7. Be2 {[%clk 00:04:57]} {[%emt 00:00:09]} g6 {[%clk 00:04:29]} {[%emt
00:00:05]} 8. h3 {[%clk 00:04:53]} {[%emt 00:00:07]} Bxf3 {[%clk 00:04:29]}
{[%emt 00:00:02]} 9. Bxf3 {[%clk 00:04:53]} {[%emt 00:00:01]} Bg7 {[%clk
00:04:29]} 10. O-O {[%clk 00:04:50]} {[%emt 00:00:06]} O-O {[%clk 00:04:29]}
{[%emt 00:00:03]} 11. Nc3 {[%clk 00:04:39]} {[%emt 00:00:14]} Nd7 {[%clk
00:04:25]} {[%emt 00:00:07]} 12. Rb1 {[%clk 00:04:36]} {[%emt 00:00:07]} Rc8
{[%clk 00:04:15]} {[%emt 00:00:12]} 13. b3 {[%clk 00:04:32]} {[%emt 00:00:07]}
Nd4 {[%clk 00:04:00]} {[%emt 00:00:18]} 14. Bb2 {[%clk 00:04:22]} {[%emt
00:00:13]} Ne5 {[%clk 00:03:56]} {[%emt 00:00:07]} 15. Bd1 {[%clk 00:04:16]}
{[%emt 00:00:09]} Nec6 {[%clk 00:03:42]} {[%emt 00:00:17]} 16. Kh1 {[%clk
00:04:04]} {[%emt 00:00:15]} a6 {[%clk 00:03:31]} {[%emt 00:00:15]} 17. Bg4
{[%clk 00:03:49]} {[%emt 00:00:18]} Ra8 {[%clk 00:03:17]} {[%emt 00:00:17]} 18.
Rfc1 {[%clk 00:03:47]} {[%emt 00:00:04]} h5 {[%clk 00:02:52]} {[%emt 00:00:27]}
19. Bd1 {[%clk 00:03:47]} {[%emt 00:00:04]} b5 {[%clk 00:02:52]} {[%emt
00:00:01]} 20. cxb5 {[%clk 00:03:40]} {[%emt 00:00:10]} axb5 {[%clk 00:02:52]}
{[%emt 00:00:03]} 21. Nxb5 {[%clk 00:03:36]} {[%emt 00:00:07]} Nxb5 {[%clk
00:02:44]} {[%emt 00:00:12]} 22. Rxc6 {[%clk 00:03:24]} {[%emt 00:00:15]} Rxa2
{[%clk 00:02:25]} {[%emt 00:00:22]} 23. Bxg7 {[%clk 00:03:24]} {[%emt
00:00:02]} Kxg7 {[%clk 00:02:25]} {[%emt 00:00:01]} 24. Be2 {[%clk 00:03:09]}
{[%emt 00:00:19]} Na7 {[%clk 00:01:20]} {[%emt 00:01:08]} 25. Ra6 {[%clk
00:02:39]} {[%emt 00:00:33]} Rxa6 {[%clk 00:01:15]} {[%emt 00:00:08]} 26. Bxa6
{[%clk 00:02:39]} Nc8 {[%clk 00:00:56]} {[%emt 00:00:22]} 27. Rc1 {[%clk
00:01:38]} {[%emt 00:01:04]} Nb6 {[%clk 00:00:56]} {[%emt 00:00:01]} 28. Rc6
{[%clk 00:01:38]} Nd7 {[%emt 00:00:01]} 29. Qc3+ Nf6 {[%clk 00:00:55]} {[%emt
00:00:04]} 30. b4 {[%clk 00:01:05]} {[%emt 00:00:36]} Kg8 {[%clk 00:00:54]}
{[%emt 00:00:04]} 31. f3 {[%clk 00:00:55]} {[%emt 00:00:14]} d5 {[%clk
00:00:48]} {[%emt 00:00:09]} 32. e5 {[%clk 00:00:52]} {[%emt 00:00:06]} d4
{[%clk 00:00:48]} 33. Qc4 {[%clk 00:00:47]} {[%emt 00:00:08]} d3 {[%clk
00:00:45]} {[%emt 00:00:06]} 34. Qxd3 {[%clk 00:00:43]} {[%emt 00:00:06]} Qxd3
{[%clk 00:00:34]} {[%emt 00:00:13]} 35. Bxd3 {[%clk 00:00:43]} Nd5 {[%clk
00:00:34]} {[%emt 00:00:02]} 36. b5 {[%clk 00:00:32]} {[%emt 00:00:15]} Rb8
{[%clk 00:00:32]} {[%emt 00:00:05]} 37. Bc4 {[%clk 00:00:32]} {[%emt 00:00:03]}
Ne3 {[%clk 00:00:24]} {[%emt 00:00:10]} 38. Rxg6+ {[%clk 00:00:23]} {[%emt
00:00:12]} Kf8 {[%clk 00:00:24]} {[%emt 00:00:02]} 39. Rc6 {[%clk 00:00:12]}
{[%emt 00:00:14]} Nxc4 {[%clk 00:00:24]} {[%emt 00:00:03]} 40. Rxc4 {[%clk
00:00:12]} Rxb5 41. f4 h4 {[%clk 00:00:24]} {[%emt 00:00:03]} 42. Kg1 {[%clk
00:00:11]} {[%emt 00:00:04]} Kg7 {[%clk 00:00:22]} {[%emt 00:00:05]} 43. Kf2
{[%clk 00:00:11]} {[%emt 00:00:02]} Kg6 {[%clk 00:00:22]} {[%emt 00:00:02]} 44.
Rc7 {[%clk 00:00:08]} {[%emt 00:00:06]} e6 {[%clk 00:00:17]} {[%emt 00:00:08]}
45. g4 {[%clk 00:00:06]} {[%emt 00:00:05]} hxg3+ {[%clk 00:00:09]} {[%emt
00:00:11]} 46. Kxg3 {[%clk 00:00:06]} {[%emt 00:00:01]} Rb3+ {[%clk 00:00:09]}
{[%emt 00:00:02]} 47. Kg4 {[%clk 00:00:06]} Rb1 {[%clk 00:00:09]} {[%emt
00:00:01]} 48. Ra7 {[%clk 00:00:06]} {[%emt 00:00:03]} Rg1+ {[%clk 00:00:09]}
{[%emt 00:00:02]} 49. Kh4 {[%clk 00:00:06]} Rf1 {[%clk 00:00:09]} {[%emt
00:00:02]} 50. Kg3 {[%clk 00:00:06]} {[%emt 00:00:02]} Rg1+ {[%clk 00:00:09]}
51. Kf2 {[%clk 00:00:06]} Rh1 {[%clk 00:00:09]} {[%emt 00:00:02]} 52. Kg2
{[%clk 00:00:06]} {[%emt 00:00:01]} Rd1 {[%clk 00:00:09]} 53. Kg3 {[%clk
00:00:06]} {[%emt 00:00:04]} Rg1+ {[%clk 00:00:09]} {[%emt 00:00:01]} 54. Kh2
{[%clk 00:00:05]} {[%emt 00:00:03]} Rf1 {[%clk 00:00:09]} {[%emt 00:00:01]} 55.
Kg3 {[%clk 00:00:05]} {[%emt 00:00:02]} Rg1+ {[%clk 00:00:09]} 56. Kh4 {[%clk
00:00:05]} Rf1 {[%clk 00:00:09]} {[%emt 00:00:02]} 57. Kg4 {[%clk 00:00:05]}
{[%emt 00:00:02]} Rg1+ {[%clk 00:00:09]} {[%emt 00:00:01]} 58. Kf3 {[%clk
00:00:05]} {[%emt 00:00:02]} Rb1 {[%clk 00:00:09]} {[%emt 00:00:02]} 59. h4
{[%clk 00:00:05]} {[%emt 00:00:03]} Rh1 {[%clk 00:00:09]} {[%emt 00:00:01]} 60.
Kg3 {[%clk 00:00:05]} {[%emt 00:00:02]} Rg1+ {[%clk 00:00:09]} {[%emt
00:00:01]} 61. Kf2 {[%clk 00:00:05]} Rg4 {[%clk 00:00:09]} {[%emt 00:00:01]} 62.
Kf3 {[%clk 00:00:05]} {[%emt 00:00:03]} Rxh4 {[%clk 00:00:09]} {[%emt
00:00:01]} 63. Ra1 {[%clk 00:00:05]} Kf5 {[%clk 00:00:09]} {[%emt 00:00:03]} 64.
Rg1 {[%clk 00:00:05]} Rxf4+ {[%clk 00:00:09]} {[%emt 00:00:02]} 65. Ke3 {[%clk
00:00:05]} Re4+ {[%clk 00:00:09]} {[%emt 00:00:01]} 66. Kf3 {[%clk 00:00:05]}
{[%emt 00:00:01]} Rxe5 {[%clk 00:00:09]} 67. Ra1 {[%clk 00:00:05]} Rd5 {[%clk
00:00:09]} 68. Rb1 {[%clk 00:00:05]} Rd3+ {[%clk 00:00:09]} 69. Ke2 {[%clk
00:00:05]} Rh3 {[%clk 00:00:09]} 70. Rb5+ {[%clk 00:00:05]} {[%emt 00:00:01]}
e5 {[%clk 00:00:09]} 71. Ra5 {[%clk 00:00:05]} f6 {[%clk 00:00:09]} 72. Kf2
{[%clk 00:00:05]} Kf4 {[%clk 00:00:09]} {[%emt 00:00:01]} 73. Ra4+ {[%clk
00:00:05]} {[%emt 00:00:01]} e4 {[%clk 00:00:09]} 74. Ra6 {[%clk 00:00:05]} f5
{[%clk 00:00:09]} 75. Rf6 {[%clk 00:00:05]} {[%emt 00:00:01]} Rh2+ {[%clk
00:00:09]} 76. Kg1 {[%clk 00:00:05]} Rb2 {[%clk 00:00:09]} 77. Rh6 {[%clk
00:00:05]} {[%emt 00:00:02]} Kg4 {[%clk 00:00:09]} {[%emt 00:00:03]} 78. Rg6+
{[%clk 00:00:05]} {[%emt 00:00:01]} Kf3 {[%clk 00:00:09]} 79. Rh6 {[%clk
00:00:05]} {[%emt 00:00:02]} f4 {[%clk 00:00:09]} {[%emt 00:00:01]} 80. Rh3+
Kg4 81. Ra3 {[%clk 00:00:05]} e3 {[%clk 00:00:09]} 82. Rc3 {[%clk 00:00:05]}
{[%emt 00:00:03]} Kf3 {[%clk 00:00:09]} 83. Rb3 {[%clk 00:00:05]} Rd2 {[%clk
00:00:09]} {[%emt 00:00:03]} 84. Ra3 {[%clk 00:00:05]} {[%emt 00:00:02]} Rd1+
{[%clk 00:00:09]} 85. Kh2 {[%clk 00:00:05]} Kf2 {[%clk 00:00:09]} 86. Ra1
{[%clk 00:00:05]} {[%emt 00:00:02]} Rxa1 {[%clk 00:00:09]} {[%emt 00:00:02]}
0-1

[Event "14e Open International de Quenza"]
[Site "Quenza, France"]
[Date "????.??.??"]
[Round "6.5"]
[White "Bellahcene, Bilel"]
[Black "Roubert, Emile"]
[Result "1-0"]
[TimeControl "5min+3s"]
[WhiteElo "2513"]
[BlackElo "2055"]

1. e4 {[%clk 00:05:03]} {[%emt 00:15:00]} e5 {[%clk 00:05:03]} {[%emt
00:00:01]} 2. Nf3 {[%clk 00:05:03]} {[%emt 00:00:02]} Nc6 {[%clk 00:05:03]} 3.
Bb5 {[%clk 00:05:03]} a6 {[%clk 00:05:03]} {[%emt 00:00:01]} 4. Ba4 {[%clk
00:05:03]} Nf6 {[%clk 00:05:03]} 5. O-O {[%clk 00:05:03]} {[%emt 00:00:01]} d6
{[%clk 00:05:01]} {[%emt 00:00:06]} 6. c3 {[%clk 00:04:51]} {[%emt 00:00:15]}
Bd7 {[%clk 00:05:01]} {[%emt 00:00:02]} 7. Re1 {[%clk 00:04:51]} {[%emt
00:00:02]} g6 {[%clk 00:05:01]} {[%emt 00:00:02]} 8. d4 {[%clk 00:04:51]} Bg7
{[%clk 00:05:01]} {[%emt 00:00:01]} 9. h3 {[%clk 00:04:51]} {[%emt 00:00:02]}
O-O {[%clk 00:05:01]} {[%emt 00:00:03]} 10. Nbd2 {[%clk 00:04:51]} {[%emt
00:00:01]} exd4 {[%clk 00:04:56]} {[%emt 00:00:08]} 11. cxd4 {[%clk 00:04:51]}
{[%emt 00:00:02]} Nb4 {[%clk 00:04:56]} {[%emt 00:00:02]} 12. Bxd7 {[%clk
00:04:51]} {[%emt 00:00:04]} Qxd7 {[%clk 00:04:32]} {[%emt 00:00:26]} 13. Qb3
{[%clk 00:04:51]} {[%emt 00:00:02]} a5 {[%clk 00:04:27]} {[%emt 00:00:08]} 14.
a3 {[%clk 00:04:51]} {[%emt 00:00:03]} Na6 {[%clk 00:03:39]} {[%emt 00:00:51]}
15. e5 {[%clk 00:04:45]} {[%emt 00:00:09]} a4 {[%clk 00:03:36]} {[%emt
00:00:06]} 16. Qc4 {[%clk 00:04:37]} {[%emt 00:00:11]} b5 {[%clk 00:03:34]}
{[%emt 00:00:05]} 17. Qc2 {[%clk 00:04:31]} {[%emt 00:00:09]} Nd5 {[%clk
00:03:32]} {[%emt 00:00:05]} 18. Ne4 {[%clk 00:04:31]} {[%emt 00:00:01]} Rac8
{[%clk 00:03:09]} {[%emt 00:00:26]} 19. Bg5 {[%clk 00:04:28]} {[%emt 00:00:06]}
h6 {[%clk 00:02:54]} {[%emt 00:00:18]} 20. Bh4 {[%clk 00:04:20]} {[%emt
00:00:11]} Qf5 {[%clk 00:02:16]} {[%emt 00:00:41]} 21. Bg3 {[%clk 00:04:12]}
{[%emt 00:00:10]} dxe5 {[%clk 00:02:12]} {[%emt 00:00:07]} 22. dxe5 {[%clk
00:04:10]} {[%emt 00:00:05]} Nf4 {[%clk 00:02:00]} {[%emt 00:00:15]} 23. Nd4
{[%clk 00:03:52]} {[%emt 00:00:22]} Qxe5 {[%clk 00:01:22]} {[%emt 00:00:41]} 24.
Nc6 {[%clk 00:03:52]} Qxb2 {[%emt 00:00:17]} 25. Qxb2 {[%emt 00:00:01]} Bxb2
{[%clk 00:01:08]} {[%emt 00:00:02]} 26. Rab1 {[%clk 00:03:48]} {[%emt
00:00:07]} Nd3 {[%clk 00:00:55]} {[%emt 00:00:16]} 27. Red1 {[%clk 00:03:48]}
Rcd8 {[%clk 00:00:55]} {[%emt 00:00:03]} 28. Nxd8 {[%clk 00:03:45]} {[%emt
00:00:06]} Rxd8 {[%clk 00:00:55]} {[%emt 00:00:02]} 29. Rxb2 {[%clk 00:03:45]}
{[%emt 00:00:03]} 1-0

[Event "14e Open International de Quenza"]
[Site "Quenza, France"]
[Date "????.??.??"]
[Round "6.6"]
[White "Rogoz, Vladyslav"]
[Black "Lagarde, Maxime"]
[Result "0-1"]
[TimeControl "5min+3s"]
[WhiteElo "2108"]
[BlackElo "2618"]

1. d4 {[%clk 00:05:03]} {[%emt 00:00:01]} Nf6 {[%clk 00:05:03]} {[%emt
00:00:01]} 2. c4 {[%clk 00:05:03]} c5 {[%clk 00:05:03]} 3. d5 {[%clk 00:05:03]}
{[%emt 00:00:01]} b5 {[%clk 00:05:03]} 4. cxb5 {[%clk 00:05:03]} {[%emt
00:00:01]} a6 {[%clk 00:05:03]} 5. e3 {[%clk 00:05:03]} {[%emt 00:00:01]} axb5
{[%clk 00:05:03]} {[%emt 00:00:03]} 6. Bxb5 {[%clk 00:05:03]} Qa5+ {[%clk
00:05:03]} {[%emt 00:00:01]} 7. Nc3 {[%clk 00:05:03]} {[%emt 00:00:02]} Bb7
{[%clk 00:05:03]} {[%emt 00:00:02]} 8. Bd2 {[%clk 00:05:03]} {[%emt 00:00:02]}
Qb6 {[%clk 00:05:03]} {[%emt 00:00:02]} 9. a4 {[%clk 00:05:03]} {[%emt
00:00:02]} Nxd5 {[%clk 00:05:00]} {[%emt 00:00:06]} 10. Nf3 {[%clk 00:04:59]}
{[%emt 00:00:07]} e6 {[%clk 00:05:00]} {[%emt 00:00:02]} 11. O-O {[%clk
00:04:56]} {[%emt 00:00:06]} Be7 {[%clk 00:05:00]} {[%emt 00:00:04]} 12. Re1
{[%clk 00:04:56]} {[%emt 00:00:03]} O-O {[%clk 00:04:58]} {[%emt 00:00:05]} 13.
e4 {[%clk 00:04:56]} {[%emt 00:00:01]} Nb4 {[%clk 00:04:58]} {[%emt 00:00:01]}
14. Ne5 {[%clk 00:04:49]} {[%emt 00:00:10]} Qc7 {[%clk 00:04:43]} {[%emt
00:00:18]} 15. Bf4 {[%clk 00:04:49]} {[%emt 00:00:02]} d6 {[%clk 00:04:43]}
{[%emt 00:00:02]} 16. Nc4 {[%clk 00:04:48]} {[%emt 00:00:04]} e5 {[%clk
00:04:42]} {[%emt 00:00:03]} 17. Be3 {[%clk 00:04:37]} {[%emt 00:00:13]} N8c6
{[%clk 00:04:42]} {[%emt 00:00:02]} 18. Nd5 {[%clk 00:04:37]} {[%emt 00:00:02]}
Nxd5 {[%clk 00:04:42]} {[%emt 00:00:02]} 19. exd5 {[%clk 00:04:37]} {[%emt
00:00:03]} Nb4 {[%clk 00:04:42]} {[%emt 00:00:01]} 20. f4 {[%clk 00:04:12]}
{[%emt 00:00:28]} Nxd5 {[%clk 00:04:31]} {[%emt 00:00:14]} 21. fxe5 {[%clk
00:04:12]} {[%emt 00:00:02]} dxe5 {[%clk 00:04:31]} {[%emt 00:00:02]} 22. Bf2
{[%clk 00:03:59]} {[%emt 00:00:16]} f6 {[%clk 00:04:25]} {[%emt 00:00:09]} 23.
Qb3 {[%clk 00:03:59]} Kh8 {[%clk 00:04:25]} {[%emt 00:00:03]} 24. Rad1 {[%clk
00:03:59]} {[%emt 00:00:01]} Rad8 {[%clk 00:04:23]} {[%emt 00:00:05]} 25. a5
{[%clk 00:03:58]} {[%emt 00:00:04]} Nf4 {[%clk 00:04:23]} {[%emt 00:00:02]} 26.
Ne3 {[%clk 00:03:26]} {[%emt 00:00:35]} Qxa5 {[%clk 00:04:22]} {[%emt
00:00:04]} 27. Bf1 {[%clk 00:03:13]} {[%emt 00:00:15]} Qb4 {[%clk 00:04:17]}
{[%emt 00:00:09]} 28. Qc2 {[%clk 00:03:09]} {[%emt 00:00:06]} Qe4 {[%clk
00:03:55]} {[%emt 00:00:26]} 29. Qb3 {[%clk 00:03:04]} {[%emt 00:00:08]} Nh3+
{[%clk 00:03:54]} {[%emt 00:00:04]} 0-1